bitfinex-derivatives/quotes_SOLF0:USTF0_20240912
["timestamp","ask_amount","ask_price","bid_price","bid_amount"]
[1726122328078,11.35,134.7,134.67,3.3412]
[1726122328568,14.6906,134.7,134.66,3.3415]
[1726122328771,11.35,134.7,134.65,3.76819117]
[1726122329168,11.35,134.7,134.67,3.3411]
[1726122330579,14.6903,134.71,134.67,3.3411]
[1726122332685,3.3403,134.71,134.67,3.3411]
[1726122332876,11.35,134.7,134.67,3.3411]
[1726122334077,14.6907,134.7,134.67,3.3411]
[1726122338387,3.3407,134.7,134.67,3.3411]
[1726122338585,14.6907,134.7,134.67,3.3411]
[1726122338780,3.3404,134.71,134.67,3.3411]
[1726122338982,14.6904,134.71,134.67,3.3411]
[1726122347489,231.71898625,134.86,134.65,3.72576569]
[1726122347789,11.35,134.74,134.67,11.35]
[1726122347989,14.6897,134.74,134.7,3.3404]
[1726122348190,11.35,134.74,134.7,3.3404]
[1726122348391,11.35,134.73,134.7,3.3404]
[1726122349086,3.3401,134.72,134.69,3.3407]
[1726122349496,11.35,134.73,134.69,3.3407]
[1726122350093,14.6899,134.73,134.69,3.3407]
[1726122352693,14.6899,134.73,134.7,3.3405]
[1726122354000,11.35,134.73,134.7,3.3405]
[1726122354296,11.35,134.73,134.71,3.3403]
[1726122355186,46.06931317,134.75,134.72,3.3399]
[1726122355385,11.35,134.75,134.72,3.3399]
[1726122355897,14.6895,134.75,134.72,3.3399]
[1726122356096,14.6895,134.75,134.71,3.3402]
[1726122357292,11.35,134.73,134.71,3.3402]
[1726122364204,11.35,134.73,134.72,3.34]
[1726122364597,11.35,134.73,134.69,1.307]
[1726122364797,11.35,134.73,134.7,3.3403]
[1726122365700,14.6899,134.73,134.7,3.3403]
[1726122366605,14.6899,134.73,134.69,4.6477]
[1726122367705,14.6899,134.73,134.7,3.3405]
[1726122371804,11.35,134.73,134.7,3.3405]
[1726122373418,11.35,134.73,134.71,3.3403]
[1726122373912,3.3396,134.74,134.71,3.3403]
[1726122373913,3.3393,134.75,134.71,3.3403]
[1726122374114,11.35,134.74,134.71,3.3403]
[1726122375108,14.6896,134.74,134.71,3.3403]
[1726122384915,13.52314034,134.75,134.72,3.34]
[1726122385111,11.35,134.76,134.72,3.34]
[1726122385820,3.3393,134.75,134.72,3.34]
[1726122387221,16.87536431,134.75,134.72,3.34]
[1726122387423,3.3393,134.75,134.72,3.34]
[1726122389820,3.62914841,134.78,134.72,11.35]
[1726122389821,11.35,134.78,134.72,11.35]
[1726122390119,11.35,134.78,134.69,1.307]
[1726122390324,11.35,134.78,134.72,11.35]
[1726122390620,3.3388,134.77,134.72,11.35]
[1726122391512,3.3388,134.77,134.74,3.3395]
[1726122391712,3.3388,134.77,134.72,11.35]
[1726122392220,3.3391,134.76,134.73,3.3397]
[1726122393212,11.35,134.78,134.73,3.3397]
[1726122393213,32.59644623,134.78,134.73,11.35]
[1726122393417,11.35,134.8,134.74,13.9909]
[1726122394224,24.88516903,134.8,134.74,13.9909]
[1726122394422,14.6882,134.8,134.76,3.3389]
[1726122395621,3.3384,134.79,134.76,3.3389]
[1726122397031,3.3381,134.8,134.76,3.3389]
[1726122397325,14.6881,134.8,134.76,3.3389]
[1726122398126,3.3381,134.8,134.76,3.3389]
[1726122398326,14.6881,134.8,134.76,3.3389]
[1726122398528,3.3381,134.8,134.77,3.3387]
[1726122400333,3.3381,134.8,134.76,3.339]
[1726122400740,14.6879,134.81,134.77,3.3387]
[1726122401730,3.3379,134.81,134.78,3.3385]
[1726122402129,14.6877,134.82,134.78,3.3385]
[1726122402325,28.20345402,134.82,134.78,3.3385]
[1726122402527,14.6877,134.82,134.78,3.3385]
[1726122403732,3.338,134.81,134.74,2.6409]
[1726122403934,13.51631857,134.83,134.74,2.6409]
[1726122403935,11.35,134.8,134.74,2.6409]
[1726122404531,3.3385,134.79,134.75,3.3392]
[1726122405030,3.3387,134.78,134.74,5.9803]
[1726122405237,14.6887,134.78,134.74,5.9803]
[1726122405635,14.6887,134.78,134.74,3.3394]
[1726122405941,11.35,134.76,134.69,11.35]
[1726122406634,11.35,134.76,134.69,15.07791224]
[1726122406829,11.35,134.76,134.72,3.3399]
[1726122406830,14.6892,134.76,134.72,3.3399]
[1726122407732,11.35,134.76,134.73,3.3397]
[1726122408041,3.78655523,134.78,134.66,3.9948]
[1726122408042,11.35,134.74,134.66,3.9948]
[1726122408237,11.35,134.74,134.7,3.3405]
[1726122409133,14.6896,134.74,134.7,3.3405]
[1726122411238,3.3399,134.73,134.69,3.3408]
[1726122413250,3.3399,134.73,134.7,3.3405]
[1726122413448,3.3396,134.74,134.7,3.3405]
[1726122413654,14.6896,134.74,134.7,3.3405]
[1726122414652,3.3398,134.73,134.7,3.3405]
[1726122422161,11.35,134.73,134.66,7.72976425]
[1726122422461,11.35,134.7,134.66,2.614]
[1726122423257,11.35,134.7,134.59,1.3533]
[1726122423553,11.35,134.7,134.63,11.35]
[1726122424265,11.35,134.7,134.6,2.7719]
[1726122424453,11.35,134.7,134.63,11.35]
[1726122424758,11.35,134.7,134.65,3.3416]
[1726122425760,3.3408,134.69,134.65,3.3416]
[1726122426257,11.35,134.7,134.6,2.7719]
[1726122426463,11.35,134.68,134.62,11.35]
[1726122427357,11.35,134.68,134.6,2.7719]
[1726122427559,11.35,134.68,134.63,11.35]
[1726122428460,3.3409,134.69,134.65,3.3415]
[1726122428653,14.6909,134.69,134.65,3.3415]
[1726122429657,3.79872888,134.72,134.62,3.3425]
[1726122429658,3.3415,134.66,134.62,3.3425]
[1726122429861,32.42767401,134.81,134.61,11.35]
[1726122430058,11.35,134.67,134.61,12.6798]
[1726122430259,11.35,134.67,134.64,3.3418]
[1726122430768,45.89236904,134.76,134.65,11.35]
[1726122431063,11.35,134.72,134.66,11.35]
[1726122431260,11.35,134.72,134.66,14.1032]
[1726122431462,14.6903,134.72,134.68,3.3409]
[1726122432057,7.75601249,134.82,134.66,14.1032]
[1726122432058,45.91646456,134.81,134.66,14.1032]
[1726122432258,11.35,134.72,134.66,14.1032]
[1726122432458,11.35,134.72,134.68,3.341]
[1726122432885,11.35,134.71,134.68,3.341]
[1726122433260,11.35,134.71,134.66,2.7532]
[1726122433763,3.3406,134.7,134.66,2.7532]
[1726122433969,11.35,134.71,134.66,2.7532]
[1726122434858,14.6904,134.71,134.67,3.3413]
[1726122435058,11.35,134.71,134.66,2.7532]
[1726122435258,3.3406,134.7,134.66,6.0946]
[1726122435754,11.35,134.69,134.63,11.35]
[1726122435956,45.84870547,134.81,134.63,11.35]
[1726122436156,11.35,134.69,134.63,11.35]
[1726122436958,11.35,134.69,134.66,3.3415]
[1726122443278,3.3406,134.7,134.66,3.3415]
[1726122443466,3.3411,134.68,134.64,3.342]
[1726122443671,11.35,134.67,134.62,2.7072]
[1726122443872,45.82553674,134.78,134.62,14.0572]
[1726122444066,11.35,134.68,134.62,14.0572]
[1726122444466,11.35,134.68,134.64,3.3419]
[1726122444970,11.35,134.68,134.62,2.7072]
[1726122445373,11.35,134.68,134.62,14.0572]
[1726122446869,11.35,134.68,134.65,3.3417]
[1726122448274,3.3406,134.7,134.66,3.3415]
[1726122448573,207.9167739,135.36,134.65,3.64190917]
[1726122448574,11.35,134.75,134.65,3.64190917]
[1726122448770,11.35,134.73,134.67,11.35]
[1726122448971,11.35,134.73,134.69,3.3407]
[1726122449575,14.6898,134.73,134.69,3.3407]
[1726122449873,14.6898,134.73,134.67,2.7461]
[1726122450268,14.6898,134.73,134.69,3.3407]
[1726122450468,14.6901,134.72,134.67,2.7461]
[1726122450865,11.35,134.7,134.66,1.2987]
[1726122451066,11.35,134.7,134.65,11.35]
[1726122451067,3.74925356,134.75,134.59,2.7456]
[1726122451270,1.17357981,134.74,134.59,4.0904]
[1726122451471,11.35,134.71,134.65,11.35]
[1726122451674,11.35,134.73,134.66,14.0865]
[1726122452077,11.35,134.73,134.7,3.3404]
[1726122453279,14.69,134.73,134.68,3.341]
[1726122453474,11.35,134.72,134.68,3.341]
[1726122453865,14.6902,134.72,134.68,3.341]
[1726122454666,3.3403,134.71,134.68,3.341]
[1726122455173,11.35,134.72,134.68,3.341]
[1726122455374,11.35,134.72,134.69,3.3408]
[1726122456376,3.3396,134.74,134.7,3.3405]
[1726122456584,14.6896,134.74,134.7,3.3405]
[1726122460787,3.3396,134.74,134.7,3.3405]
[1726122460987,11.35,134.73,134.7,3.3405]
[1726122463586,11.35,134.73,134.71,3.3403]
[1726122463890,3.3396,134.74,134.71,3.3403]
[1726122464084,45.75249901,134.81,134.68,11.35]
[1726122464289,11.35,134.77,134.71,11.35]
[1726122464484,11.35,134.77,134.7,11.35]
[1726122464790,11.35,134.76,134.7,11.35]
[1726122465185,14.6891,134.76,134.67,1.3063]
[1726122465385,14.6891,134.76,134.7,11.35]
[1726122465586,14.6891,134.76,134.72,3.3399]
[1726122466291,14.6891,134.76,134.73,3.3398]
[1726122466689,14.6891,134.76,134.7,11.35]
[1726122466880,14.6891,134.76,134.72,3.3399]
[1726122467488,11.35,134.75,134.72,3.3399]
[1726122467786,11.35,134.73,134.71,3.3403]
[1726122469589,3.3395,134.75,134.71,3.3403]
[1726122469792,14.6895,134.75,134.71,3.3403]
[1726122471590,14.6895,134.75,134.72,3.34]
[1726122471895,14.6895,134.75,134.67,1.3063]
[1726122471896,3.3397,134.74,134.67,1.3063]
[1726122472195,11.35,134.73,134.67,12.6563]
[1726122472589,11.35,134.73,134.7,3.3405]
[1726122473894,11.35,134.73,134.71,3.3402]
[1726122474795,14.6898,134.73,134.7,3.3404]
[1726122475093,11.35,134.73,134.67,12.6563]
[1726122476689,3.3397,134.74,134.68,11.35]
[1726122478202,11.42388886,134.84,134.7,11.35]
[1726122478498,11.35,134.77,134.71,11.35]
[1726122478792,45.78233384,134.8,134.72,11.35]
[1726122478993,103.3751196,134.81,134.75,11.35]
[1726122478994,114.7251196,134.81,134.75,11.35]
[1726122479193,1.17395764,134.8,134.75,11.35]
[1726122479799,1.17395764,134.8,134.76,3.3389]
[1726122479800,3.3381,134.8,134.76,3.3389]
[1726122480997,118.0630196,134.81,134.77,3.3387]
[1726122481397,103.3751196,134.81,134.76,11.35]
[1726122481998,103.3751196,134.81,134.77,3.3386]
[1726122482798,106.7129196,134.81,134.77,3.3386]
[1726122482999,11.35,134.8,134.74,4.0323]
[1726122483497,14.6883,134.8,134.74,4.0323]
[1726122484301,14.6883,134.8,134.76,3.3389]
[1726122484490,3.3384,134.79,134.74,4.0323]
[1726122485907,3.3384,134.79,134.75,3.3392]
[1726122488305,3.3387,134.78,134.74,6.0715]
[1726122488610,3.3387,134.78,134.74,3.3395]
[1726122489708,3.3388,134.77,134.73,3.3398]
[1726122494110,3.3388,134.77,134.74,3.3395]
[1726122494407,3.3386,134.78,134.72,11.35]
[1726122494608,3.3386,134.78,134.74,3.3394]
[1726122495910,3.3388,134.77,134.74,3.3394]
[1726122496609,103.3751196,134.81,134.74,11.35]
[1726122496804,1.17567429,134.8,134.74,11.35]
[1726122497111,114.7251196,134.81,134.75,11.35]
[1726122497311,3.3382,134.8,134.76,3.3389]
[1726122500309,3.3382,134.8,134.77,3.3388]
[1726122500502,106.7130196,134.81,134.77,3.3388]
[1726122501614,106.7130196,134.81,134.78,3.3386]
[1726122502008,106.7130196,134.81,134.77,3.3387]
[1726122508112,114.7251196,134.81,134.76,5.9905]
[1726122508313,114.7251196,134.81,134.76,2.6515]
[1726122508914,3.3384,134.79,134.76,5.9905]
[1726122509418,3.3381,134.8,134.76,5.9905]
[1726122510019,3.3381,134.8,134.76,2.6515]
[1726122510218,11.35,134.79,134.75,3.3391]
[1726122510731,3.3387,134.78,134.74,4.7668]
[1726122510919,3.3387,134.78,134.74,3.3395]
[1726122511716,11.35,134.78,134.73,3.3396]
[1726122512328,3.3391,134.76,134.73,3.3396]
[1726122513127,3.3391,134.76,134.72,3.34]
[1726122513731,3.3391,134.76,134.73,3.3398]
[1726122514623,3.3391,134.76,134.68,1.325]
[1726122514818,3.3393,134.75,134.71,11.35]
[1726122515019,11.35,134.78,134.71,11.35]
[1726122515225,3.3391,134.76,134.72,3.3399]
[1726122516838,3.3391,134.76,134.73,3.3398]
[1726122521639,13.46109502,134.8,134.74,3.3395]
[1726122521840,1.17616447,134.79,134.73,11.35]
[1726122522041,1.17616447,134.79,134.74,11.35]
[1726122522236,4.51456447,134.79,134.76,3.339]
[1726122522444,3.3384,134.79,134.76,3.339]
[1726122524847,3.3384,134.79,134.75,3.3392]
[1726122525148,11.35,134.79,134.74,1.3461]
[1726122525650,3.3386,134.78,134.74,4.6855]
[1726122530852,3.3386,134.78,134.75,3.3392]
[1726122531846,3.3384,134.79,134.76,3.3391]
[1726122532050,11.35,134.8,134.76,3.3391]
[1726122532652,14.6882,134.8,134.76,3.3391]
[1726122533454,106.7130196,134.81,134.77,3.3387]
[1726122534654,3.3381,134.8,134.77,3.3387]
[1726122539162,11.35,134.82,134.78,3.3385]
[1726122539350,1.17624806,134.81,134.76,11.35]
[1726122540170,4.51404806,134.81,134.77,3.3387]
[1726122540363,11.35,134.82,134.77,3.3387]
[1726122540556,1.17620105,134.81,134.77,3.3387]
[1726122540751,11.35,134.78,134.67,4.1452]
[1726122540950,11.35,134.76,134.7,11.35]
[1726122541461,14.6889,134.77,134.7,11.35]
[1726122541855,14.6889,134.77,134.71,11.35]
[1726122542050,14.6886,134.78,134.73,3.3396]
[1726122542453,13.45792681,134.78,134.74,11.35]
[1726122542663,3.3384,134.79,134.75,3.3391]
[1726122543364,32.42063241,134.81,134.76,3.3389]
[1726122543663,114.71896093,134.82,134.76,3.3389]
[1726122543862,16.79978613,134.81,134.76,3.3389]
[1726122544054,13.46178613,134.81,134.76,3.3389]
[1726122544264,29.9129544,134.81,134.76,3.3389]
[1726122544858,3.3381,134.8,134.76,3.3389]
[1726122547962,16.80026135,134.8,134.76,3.3389]
[1726122548266,3.3381,134.8,134.76,3.3389]
[1726122549660,16.79887935,134.8,134.76,3.3389]
[1726122549862,3.3381,134.8,134.76,3.3389]
[1726122550164,16.79887935,134.8,134.76,3.3389]
[1726122550363,3.3381,134.8,134.76,3.3389]
[1726122550668,3.3384,134.79,134.76,3.3389]
[1726122552965,45.84890934,134.81,134.77,14.6888]
[1726122553264,103.36896093,134.82,134.77,14.6888]
[1726122553468,45.85773027,134.81,134.77,14.6888]
[1726122553662,103.36896093,134.82,134.77,14.6888]
[1726122553870,45.85838877,134.81,134.77,14.6888]
[1726122554177,103.36896093,134.82,134.77,14.6888]
[1726122554367,29.89445557,134.81,134.77,11.35]
[1726122554559,41.24445557,134.81,134.76,3.339]
[1726122554762,13.45330903,134.8,134.75,11.35]
[1726122554971,3.3383,134.79,134.75,14.6891]
[1726122555170,24.80330903,134.81,134.75,14.6891]
[1726122555171,24.80330903,134.81,134.75,11.35]
[1726122556371,3.3383,134.8,134.76,3.339]
[1726122558271,3.3383,134.79,134.76,3.339]
[1726122559073,24.80330903,134.81,134.79,3.3382]
[1726122559074,13.45330903,134.81,134.79,3.3382]
[1726122559277,11.35,134.85,134.78,11.35]
[1726122559477,1.17583883,134.84,134.78,11.35]
[1726122560682,11.35,134.82,134.73,2.7553]
[1726122560983,11.35,134.81,134.75,11.35]
[1726122561184,3.3383,134.8,134.75,14.6891]
[1726122562778,3.3383,134.8,134.76,3.3391]
[1726122565696,45.87545152,134.84,134.73,3.3396]
[1726122565892,11.35,134.76,134.69,11.35]
[1726122566601,3.3394,134.75,134.7,3.3403]
[1726122567101,11.35,134.76,134.72,3.3399]
[1726122567102,16.7982107,134.76,134.72,3.3399]
[1726122567297,3.3391,134.76,134.72,3.3399]
[1726122567697,3.3389,134.77,134.73,3.3396]
[1726122568400,3.3389,134.77,134.73,14.6896]
[1726122568592,3.3386,134.78,134.74,3.3395]
[1726122568798,16.79527186,134.78,134.74,3.3395]
[1726122569102,3.3386,134.78,134.74,3.3395]
[1726122569803,3.3384,134.79,134.74,3.3395]
[1726122570004,11.35,134.8,134.73,3.961]
[1726122570405,43.76004737,134.8,134.73,3.961]
[1726122570612,3.3385,134.79,134.75,3.3392]
[1726122572213,3.3381,134.8,134.76,3.339]
[1726122572414,11.35,134.81,134.75,11.35]
[1726122572905,3.3382,134.8,134.75,14.6891]
[1726122573108,16.79789886,134.8,134.75,14.6891]
[1726122573702,3.3382,134.8,134.75,14.6891]
[1726122574306,3.3382,134.8,134.76,3.339]
[1726122574712,16.79789886,134.8,134.76,3.339]
[1726122575015,3.3382,134.8,134.76,3.339]
[1726122575209,16.79789886,134.8,134.76,3.339]
[1726122576011,3.3382,134.8,134.76,3.339]
[1726122576806,13.45969886,134.8,134.77,3.3388]
[1726122577109,3.3379,134.81,134.77,3.3388]
[1726122577705,49.21838824,134.81,134.77,3.3388]
[1726122577902,13.45969886,134.8,134.77,3.3388]
[1726122578205,3.3379,134.81,134.77,3.3388]
[1726122578808,49.21835589,134.81,134.77,3.3388]
[1726122579004,13.45969886,134.8,134.77,3.3388]
[1726122579215,35.76240995,134.81,134.77,3.3388]
[1726122579414,13.45969886,134.8,134.77,3.3388]
[1726122579609,16.79759886,134.81,134.77,3.3388]
[1726122579806,15.97220792,134.81,134.78,3.3385]
[1726122580124,19.79045564,134.82,134.78,3.3385]
[1726122580414,3.3378,134.82,134.78,3.3385]
[1726122581114,16.80176219,134.82,134.78,3.3385]
[1726122581310,3.3378,134.82,134.78,3.3385]
[1726122581511,16.80176219,134.82,134.78,3.3385]
[1726122581709,3.3378,134.82,134.78,3.3385]
[1726122581914,16.80176219,134.82,134.78,3.3385]
[1726122582215,3.3378,134.82,134.78,3.3385]
[1726122582415,16.80176219,134.82,134.78,3.3385]
[1726122582610,3.3378,134.82,134.78,6.1335]
[1726122582811,16.80176219,134.82,134.78,6.1335]
[1726122583009,3.3378,134.82,134.78,6.1335]
[1726122583218,16.80176219,134.82,134.78,6.1335]
[1726122583616,3.3378,134.82,134.78,6.1335]
[1726122583820,16.80176219,134.82,134.78,6.1335]
[1726122584011,3.3378,134.82,134.78,6.1335]
[1726122584911,16.80176219,134.82,134.78,6.1335]
[1726122585217,3.3378,134.82,134.78,6.1335]
[1726122585420,16.80176219,134.82,134.78,6.1335]
[1726122585713,3.3378,134.82,134.78,6.1335]
[1726122585916,16.80176219,134.82,134.78,6.1335]
[1726122586120,3.3378,134.82,134.78,6.1335]
[1726122586319,16.80176219,134.82,134.78,6.1335]
[1726122586614,3.3378,134.82,134.78,6.1335]
[1726122586818,16.80176219,134.82,134.78,6.1335]
[1726122587018,3.3378,134.82,134.78,6.1335]
[1726122587219,16.80176219,134.82,134.78,6.1335]
[1726122587422,3.3378,134.82,134.78,6.1335]
[1726122587614,16.80176219,134.82,134.78,6.1335]
[1726122588016,3.3378,134.82,134.78,6.1335]
[1726122588422,16.80176219,134.82,134.78,6.1335]
[1726122588621,3.3378,134.82,134.78,6.1335]
[1726122588817,16.80176219,134.82,134.78,6.1335]
[1726122589214,3.3378,134.82,134.78,6.1335]
[1726122589720,16.80176219,134.82,134.78,6.1335]
[1726122589921,3.3378,134.82,134.78,6.1335]
[1726122590127,16.80176219,134.82,134.78,6.1335]
[1726122590317,43.77633939,134.83,134.78,2.795]
[1726122590516,47.0661668,134.82,134.78,2.795]
[1726122590715,11.35,134.82,134.78,2.795]
[1726122591524,3.338,134.81,134.78,2.795]
[1726122592120,14.6877,134.82,134.78,6.1335]
[1726122592325,3.3377,134.82,134.78,6.1335]
[1726122592629,33.25919878,134.82,134.78,6.1335]
[1726122592825,13.46548795,134.82,134.8,11.35]
[1726122593025,45.90991314,134.86,134.79,1.3928]
[1726122593218,47.08683294,134.85,134.79,1.3928]
[1726122593422,13.47004979,134.84,134.8,3.338]
[1726122593622,32.78874022,134.85,134.8,3.338]
[1726122593922,32.78874022,134.85,134.79,12.7428]
[1726122593923,13.47004979,134.84,134.79,12.7428]
[1726122594121,13.47004979,134.84,134.81,3.3377]
[1726122597326,19.79904829,134.85,134.81,3.3377]
[1726122597530,13.47577618,134.84,134.81,3.3377]
[1726122597727,16.81267618,134.85,134.81,3.3377]
[1726122598320,32.80133613,134.85,134.81,3.3377]
[1726122598632,19.80542389,134.85,134.81,3.3377]
[1726122598832,14.6866,134.86,134.82,3.3376]
[1726122599033,1.17741908,134.85,134.82,3.3376]
[1726122599934,1.17741908,134.85,134.83,3.3373]
[1726122600133,45.93424013,134.86,134.83,3.3373]
[1726122600333,14.65399848,134.85,134.83,3.3373]
[1726122600632,45.942242,134.86,134.83,3.3373]
[1726122600832,1.17769615,134.85,134.83,3.3373]
[1726122601023,33.28521592,134.86,134.82,14.6875]
[1726122601335,11.35,134.89,134.82,11.35]
[1726122601534,1.17787631,134.88,134.82,11.35]
[1726122601732,2.35575456,134.88,134.82,11.35]
[1726122601922,1.17787825,134.87,134.82,11.35]
[1726122602122,1.17787825,134.87,134.84,11.35]
[1726122602327,1.17787631,134.88,134.84,11.35]
[1726122602837,12.52789028,134.87,134.81,3.66169968]
[1726122603029,11.35,134.85,134.79,1.3928]
[1726122603226,11.35,134.84,134.79,1.3928]
[1726122603431,3.3371,134.84,134.79,1.3928]
[1726122603632,14.6871,134.84,134.79,1.3928]
[1726122604240,3.3374,134.83,134.78,2.795]
[1726122604541,11.35,134.84,134.8,3.338]
[1726122605145,14.6873,134.84,134.8,3.338]
[1726122606640,3.3373,134.84,134.8,3.338]
[1726122613040,14.6875,134.83,134.79,3.3382]
[1726122613638,11.35,134.83,134.8,3.3381]
[1726122613838,3.3371,134.84,134.8,3.3381]
[1726122616055,11.35,134.83,134.75,1.3827]
[1726122616351,11.35,134.82,134.75,1.3827]
[1726122616537,11.35,134.82,134.74,15.11688385]
[1726122616733,3.3381,134.8,134.76,3.3388]
[1726122616934,11.35,134.79,134.73,1.2931]
[1726122617242,11.35,134.77,134.73,3.3396]
[1726122618045,14.6888,134.77,134.73,3.3396]
[1726122620736,11.35,134.77,134.73,3.3396]
[1726122621743,11.35,134.77,134.74,3.3395]
[1726122625539,14.6888,134.77,134.73,3.3397]
[1726122626047,11.35,134.77,134.73,3.3397]
[1726122626239,11.35,134.76,134.72,6.1181]
[1726122626749,11.35,134.76,134.73,3.3398]
[1726122627047,11.35,134.77,134.73,3.3398]
[1726122627244,11.35,134.77,134.72,2.7782]
[1726122627440,11.35,134.77,134.74,3.3395]
[1726122627642,11.35,134.77,134.72,2.7782]
[1726122628951,14.6888,134.77,134.73,3.3397]
[1726122629654,14.6888,134.77,134.74,3.3395]
[1726122630348,11.35,134.77,134.74,3.3395]
[1726122633953,14.6888,134.77,134.74,3.3395]
[1726122634153,14.6888,134.77,134.73,3.3397]
[1726122634549,14.6888,134.77,134.74,3.3395]
[1726122634750,11.35,134.77,134.74,3.3395]
[1726122636056,14.6888,134.77,134.74,3.3395]
[1726122639352,11.35,134.77,134.74,3.3395]
[1726122639757,3.69468543,134.8,134.75,3.3392]
[1726122639957,14.6886,134.78,134.72,2.7782]
[1726122640547,14.6886,134.78,134.74,3.3394]
[1726122640855,14.6888,134.77,134.74,3.3394]
[1726122641259,11.35,134.77,134.74,3.3394]
[1726122642856,14.6888,134.77,134.74,3.3394]
[1726122644764,3.3391,134.76,134.73,3.3397]
[1726122646858,14.6889,134.77,134.73,3.3397]
[1726122653767,165.0,134.93,134.74,3.3395]
[1726122653768,14.6887,134.78,134.74,3.3395]
[1726122654455,3.3389,134.77,134.73,3.3397]
[1726122655665,11.35,134.77,134.73,3.3397]
[1726122656265,3.3391,134.76,134.72,3.3399]
[1726122659469,14.6893,134.75,134.71,3.3402]
[1726122659965,11.35,134.74,134.69,2.6022]
[1726122660164,11.35,134.72,134.69,2.6022]
[1726122660565,45.84526472,134.83,134.69,2.6022]
[1726122660771,11.35,134.73,134.69,2.6022]
[1726122661770,14.6899,134.73,134.69,5.9429]
[1726122662064,3.3399,134.73,134.69,5.9429]
[1726122663571,3.3396,134.74,134.7,3.3405]
[1726122663770,11.35,134.74,134.69,2.6022]
[1726122664870,11.35,134.72,134.69,2.6022]
[1726122665666,11.35,134.72,134.69,5.943]
[1726122667168,14.6896,134.74,134.7,3.3405]
[1726122668168,3.3396,134.74,134.7,3.3405]
[1726122670778,14.6894,134.75,134.71,3.3402]
[1726122671477,11.35,134.75,134.71,3.3402]
[1726122671869,7.428,134.87,134.7,11.35]
[1726122671870,11.35,134.76,134.7,11.35]
[1726122672276,3.3389,134.77,134.7,11.35]
[1726122672778,3.3389,134.77,134.73,3.3397]
[1726122674376,15.18029775,134.87,134.74,3.3395]
[1726122674377,3.3386,134.78,134.74,3.3395]
[1726122674579,14.6886,134.78,134.74,3.3395]
[1726122676580,3.3388,134.77,134.73,3.3397]
[1726122676974,11.35,134.76,134.73,3.3397]
[1726122678275,14.6892,134.76,134.69,2.6022]
[1726122678576,14.6892,134.76,134.69,13.9522]
[1726122678784,11.35,134.76,134.69,13.9522]
[1726122679775,3.3393,134.75,134.71,3.3401]
[1726122680877,14.6891,134.76,134.72,3.34]
[1726122681473,3.3393,134.75,134.72,3.34]
[1726122681677,11.35,134.76,134.72,3.34]
[1726122682779,14.6892,134.76,134.72,3.34]
[1726122686387,11.35,134.76,134.73,3.3396]
[1726122688881,35.71918773,134.79,134.72,15.02082913]
[1726122689082,35.71918773,134.79,134.74,11.35]
[1726122689083,13.44457079,134.79,134.74,11.35]
[1726122689576,13.44457079,134.79,134.75,14.1453]
[1726122689781,11.45320954,134.91,134.75,15.5145]
[1726122689782,11.35,134.82,134.75,15.5145]
[1726122689977,11.35,134.82,134.78,3.3384]
[1726122690182,3.3375,134.83,134.78,3.3384]
[1726122690486,11.35,134.83,134.78,3.3384]
[1726122690988,11.35,134.82,134.77,3.3387]